[Event "Late-Titled-Tuesday-Blitz-October-24-2023"]
[Site "Chess.com"]
[Date "2023.10.24"]
[Round "6"]
[White "marik_spb"]
[Black "NateSolon"]
[Result "0-1"]
[WhiteElo "2389"]
[BlackElo "2653"]
[TimeControl "180+1"]
[EndTime "15:06:14 PDT"]
[Termination "NateSolon won on time"]

1. d4 {[%clk 0:03:00.9]} 1... d5 {[%clk 0:02:58.5]} 2. c4 {[%clk 0:03:01]} 2...
c6 {[%clk 0:02:58.9]} 3. Nf3 {[%clk 0:03:01.2]} 3... Nf6 {[%clk 0:02:59.1]} 4.
Nc3 {[%clk 0:03:01.6]} 4... e6 {[%clk 0:02:59.2]} 5. g3 {[%clk 0:03:02]} 5...
dxc4 {[%clk 0:02:58.8]} 6. Bg2 {[%clk 0:02:52]} 6... Nbd7 {[%clk 0:02:58.1]} 7.
O-O {[%clk 0:02:51.8]} 7... b5 {[%clk 0:02:58.1]} 8. Ng5 {[%clk 0:02:43.6]} 8...
Nd5 {[%clk 0:02:43.1]} 9. e4 {[%clk 0:02:42.9]} 9... Nxc3 {[%clk 0:02:42.9]} 10.
bxc3 {[%clk 0:02:43.8]} 10... Be7 {[%clk 0:02:43]} 11. Qh5 {[%clk 0:02:30.2]}
11... g6 {[%clk 0:02:43.2]} 12. Qh6 {[%clk 0:02:28.3]} 12... Bf8 {[%clk
0:02:42.3]} 13. Qh3 {[%clk 0:02:19]} 13... Be7 {[%clk 0:02:13.7]} 14. Qh6 {[%clk
0:02:17.9]} 14... Bf8 {[%clk 0:02:13.9]} 15. Qh3 {[%clk 0:02:18]} 15... e5
{[%clk 0:02:06.9]} 16. Ne6 {[%clk 0:00:45.2]} 16... fxe6 {[%clk 0:02:06.8]} 17.
Qxe6+ {[%clk 0:00:46.1]} 17... Qe7 {[%clk 0:02:07.4]} 18. Qxc6 {[%clk
0:00:40.8]} 18... Rb8 {[%clk 0:02:07.3]} 19. a4 {[%clk 0:00:19.5]} 19... Bb7
{[%clk 0:01:58.2]} 20. Qxb5 {[%clk 0:00:19.4]} 20... Bxe4 {[%clk 0:01:58.3]} 21.
Qxc4 {[%clk 0:00:19.8]} 21... Bxg2 {[%clk 0:01:58]} 22. Kxg2 {[%clk 0:00:20.1]}
22... Bg7 {[%clk 0:01:53.8]} 23. Ba3 {[%clk 0:00:18.3]} 23... Qf7 {[%clk
0:01:50.6]} 24. Qc7 {[%clk 0:00:14.9]} 24... Bf8 {[%clk 0:01:22.3]} 25. Rab1
{[%clk 0:00:08]} 25... Qd5+ {[%clk 0:01:14.1]} 26. Kg1 {[%clk 0:00:07.9]} 26...
Rxb1 {[%clk 0:01:13.5]} 27. Rxb1 {[%clk 0:00:08.8]} 27... Bxa3 {[%clk
0:00:47.3]} 28. Qc8+ {[%clk 0:00:07.6]} 28... Kf7 {[%clk 0:00:40.6]} 29. Qxh8
{[%clk 0:00:08.5]} 29... Nf8 {[%clk 0:00:35.7]} 30. Qxe5 {[%clk 0:00:07.3]}
30... Qxe5 {[%clk 0:00:35.7]} 31. dxe5 {[%clk 0:00:08.2]} 31... Bc5 {[%clk
0:00:36]} 32. Kg2 {[%clk 0:00:07.7]} 32... Ke6 {[%clk 0:00:33.2]} 33. f4 {[%clk
0:00:07.6]} 33... Kd5 {[%clk 0:00:33.7]} 34. Rb7 {[%clk 0:00:06.4]} 34... Kc4
{[%clk 0:00:29.3]} 35. Rc7 {[%clk 0:00:05.5]} 35... Ne6 {[%clk 0:00:22]} 0-1

[Event "Late-Titled-Tuesday-Blitz-October-24-2023"]
[Site "Chess.com"]
[Date "2023.10.24"]
[Round "6"]
[White "WPWPWP-2015"]
[Black "Ali_rastbod"]
[Result "1-0"]
[WhiteElo "2603"]
[BlackElo "2733"]
[TimeControl "180+1"]
[EndTime "15:06:16 PDT"]
[Termination "WPWPWP-2015 won by resignation"]

1. e4 {[%clk 0:03:00.9]} 1... d5 {[%clk 0:02:09.6]} 2. exd5 {[%clk 0:03:00.1]}
2... Qxd5 {[%clk 0:02:09.3]} 3. Nc3 {[%clk 0:03:00.8]} 3... Qd6 {[%clk
0:02:09.9]} 4. h3 {[%clk 0:02:56.7]} 4... a6 {[%clk 0:02:02.8]} 5. g3 {[%clk
0:02:53.7]} 5... e5 {[%clk 0:02:01.2]} 6. Bg2 {[%clk 0:02:52.7]} 6... Nc6 {[%clk
0:01:58.4]} 7. d3 {[%clk 0:02:52.1]} 7... Bf5 {[%clk 0:01:57.1]} 8. Nf3 {[%clk
0:02:46.1]} 8... O-O-O {[%clk 0:01:56.6]} 9. O-O {[%clk 0:02:42.3]} 9... f6
{[%clk 0:01:56.4]} 10. Be3 {[%clk 0:02:37.4]} 10... g5 {[%clk 0:01:45.5]} 11.
Kh2 {[%clk 0:02:34.8]} 11... h5 {[%clk 0:01:44.4]} 12. Ne4 {[%clk 0:02:29.3]}
12... Qd7 {[%clk 0:01:42.6]} 13. Nfd2 {[%clk 0:02:26.9]} 13... Be6 {[%clk
0:01:26.3]} 14. a3 {[%clk 0:02:16.9]} 14... Be7 {[%clk 0:01:16.4]} 15. b4 {[%clk
0:02:15.2]} 15... Nh6 {[%clk 0:01:06.2]} 16. Bc5 {[%clk 0:01:52.7]} 16... b6
{[%clk 0:00:50.5]} 17. Bxe7 {[%clk 0:01:50.8]} 17... Qxe7 {[%clk 0:00:51.4]} 18.
Nxf6 {[%clk 0:01:32.8]} 18... Qxf6 {[%clk 0:00:48.6]} 19. Bxc6 {[%clk
0:01:32.1]} 19... Bxh3 {[%clk 0:00:42.1]} 20. Bg2 {[%clk 0:01:28.6]} 20... Bxg2
{[%clk 0:00:31.2]} 21. Kxg2 {[%clk 0:01:28.6]} 21... h4 {[%clk 0:00:31.4]} 22.
Qf3 {[%clk 0:01:22.1]} 22... h3+ {[%clk 0:00:31]} 23. Kh2 {[%clk 0:01:17.9]}
23... Qxf3 {[%clk 0:00:31.3]} 24. Nxf3 {[%clk 0:01:17.6]} 24... Ng4+ {[%clk
0:00:31.8]} 25. Kg1 {[%clk 0:01:16.9]} 25... Rdf8 {[%clk 0:00:25.4]} 26. Nh2
{[%clk 0:01:12]} 26... Nxh2 {[%clk 0:00:22.4]} 27. Kxh2 {[%clk 0:01:11.7]} 27...
g4 {[%clk 0:00:21.1]} 28. Rae1 {[%clk 0:01:11.4]} 28... Rh5 {[%clk 0:00:21.4]}
29. Re4 {[%clk 0:01:06.4]} 29... Rg5 {[%clk 0:00:18.1]} 30. f3 {[%clk
0:00:57.9]} 30... gxf3 {[%clk 0:00:16.7]} 31. Kxh3 {[%clk 0:00:57.3]} 31... Kd7
{[%clk 0:00:16.9]} 32. g4 {[%clk 0:00:54]} 32... Kd6 {[%clk 0:00:13.5]} 33. Kg3
{[%clk 0:00:54.1]} 33... Kd5 {[%clk 0:00:08.2]} 34. Rxf3 {[%clk 0:00:52]} 34...
Rxf3+ {[%clk 0:00:09.1]} 35. Kxf3 {[%clk 0:00:52.4]} 35... b5 {[%clk 0:00:09.7]}
36. Kg3 {[%clk 0:00:51.8]} 36... c5 {[%clk 0:00:07.8]} 37. bxc5 {[%clk
0:00:49.5]} 37... Kxc5 {[%clk 0:00:08.7]} 38. Kh4 {[%clk 0:00:49.3]} 38... Rg8
{[%clk 0:00:09.1]} 39. Rxe5+ {[%clk 0:00:48.1]} 39... Kd4 {[%clk 0:00:09.8]} 40.
Re6 {[%clk 0:00:46.9]} 40... Ra8 {[%clk 0:00:07.1]} 41. Rc6 {[%clk 0:00:46.2]}
41... a5 {[%clk 0:00:07.1]} 42. g5 {[%clk 0:00:45.3]} 42... b4 {[%clk
0:00:07.7]} 43. a4 {[%clk 0:00:39.3]} 43... Ke3 {[%clk 0:00:08]} 44. g6 {[%clk
0:00:38.3]} 44... Rh8+ {[%clk 0:00:08.6]} 45. Kg5 {[%clk 0:00:37.6]} 45... Kd2
{[%clk 0:00:09.5]} 46. g7 {[%clk 0:00:37.6]} 46... Rg8 {[%clk 0:00:10]} 47. Kf6
{[%clk 0:00:37.2]} 1-0

[Event "Late-Titled-Tuesday-Blitz-October-24-2023"]
[Site "Chess.com"]
[Date "2023.10.24"]
[Round "6"]
[White "Casper"]
[Black "filipluczak05"]
[Result "0-1"]
[WhiteElo "2461"]
[BlackElo "2622"]
[TimeControl "180+1"]
[EndTime "15:06:17 PDT"]
[Termination "filipluczak05 won on time"]

1. e4 {[%clk 0:03:00.9]} 1... g6 {[%clk 0:03:00.9]} 2. h4 {[%clk 0:02:59.7]}
2... Bg7 {[%clk 0:03:00.5]} 3. h5 {[%clk 0:03:00.1]} 3... d5 {[%clk 0:03:00]} 4.
hxg6 {[%clk 0:02:58.8]} 4... hxg6 {[%clk 0:02:59]} 5. Rxh8 {[%clk 0:02:59.7]}
5... Bxh8 {[%clk 0:02:59.4]} 6. exd5 {[%clk 0:02:58.6]} 6... Qxd5 {[%clk
0:02:59.1]} 7. Nc3 {[%clk 0:02:59.5]} 7... Bxc3 {[%clk 0:02:57.9]} 8. dxc3
{[%clk 0:02:59.4]} 8... Qxd1+ {[%clk 0:02:58.8]} 9. Kxd1 {[%clk 0:03:00.3]} 9...
Nc6 {[%clk 0:02:58.8]} 10. Be3 {[%clk 0:02:55.2]} 10... Bf5 {[%clk 0:02:55.3]}
11. Kc1 {[%clk 0:02:45.9]} 11... O-O-O {[%clk 0:02:48.7]} 12. b3 {[%clk
0:02:41.8]} 12... Nf6 {[%clk 0:02:48.5]} 13. f3 {[%clk 0:02:36.5]} 13... Nd5
{[%clk 0:02:41.2]} 14. Bd2 {[%clk 0:02:36.5]} 14... Rh8 {[%clk 0:02:40.7]} 15.
Ne2 {[%clk 0:02:30.4]} 15... Rh1 {[%clk 0:02:33.7]} 16. Kb2 {[%clk 0:02:26.3]}
16... e5 {[%clk 0:02:32]} 17. Ng3 {[%clk 0:02:24.8]} 17... Rh2 {[%clk
0:02:28.8]} 18. Nxf5 {[%clk 0:02:14.5]} 18... gxf5 {[%clk 0:02:29.7]} 19. Re1
{[%clk 0:02:12.6]} 19... f6 {[%clk 0:02:06.4]} 20. a4 {[%clk 0:01:43.3]} 20...
f4 {[%clk 0:02:05.1]} 21. b4 {[%clk 0:01:28]} 21... Nce7 {[%clk 0:01:27.6]} 22.
c4 {[%clk 0:01:23.5]} 22... Nb6 {[%clk 0:01:25]} 23. a5 {[%clk 0:01:16.5]} 23...
Nd7 {[%clk 0:01:23.8]} 24. Bxf4 {[%clk 0:01:16.4]} 24... exf4 {[%clk 0:01:19.2]}
25. Rxe7 {[%clk 0:01:15.6]} 25... Ne5 {[%clk 0:01:19.1]} 26. Kc3 {[%clk
0:00:54.3]} 26... Kd8 {[%clk 0:01:14]} 27. Rg7 {[%clk 0:00:52]} 27... Rh1 {[%clk
0:01:12.8]} 28. Bd3 {[%clk 0:00:48.9]} 28... Rg1 {[%clk 0:01:13]} 29. Be4 {[%clk
0:00:45.2]} 29... b6 {[%clk 0:01:13.2]} 30. a6 {[%clk 0:00:44]} 30... Ra1 {[%clk
0:01:08.1]} 31. Bb7 {[%clk 0:00:40.6]} 31... c5 {[%clk 0:00:59.6]} 32. Rg8+
{[%clk 0:00:17.4]} 32... Kc7 {[%clk 0:00:55.1]} 33. b5 {[%clk 0:00:14.1]} 33...
Ra3+ {[%clk 0:00:53.9]} 34. Kd2 {[%clk 0:00:13.3]} 34... Nxc4+ {[%clk
0:00:54.5]} 35. Ke2 {[%clk 0:00:13.3]} 35... Rc3 {[%clk 0:00:41.8]} 36. Rc8+
{[%clk 0:00:09.8]} 36... Kd6 {[%clk 0:00:40.6]} 37. Ra8 {[%clk 0:00:10.7]} 37...
Rxc2+ {[%clk 0:00:28.4]} 38. Kd3 {[%clk 0:00:10.8]} 38... Ne3 {[%clk 0:00:28.4]}
39. Rxa7 {[%clk 0:00:10.6]} 39... Ke5 {[%clk 0:00:28.5]} 40. Bd5 {[%clk
0:00:03.4]} 40... Kxd5 {[%clk 0:00:23.1]} 41. Rd7+ {[%clk 0:00:01.2]} 41... Ke6
{[%clk 0:00:23.2]} 0-1

[Event "Late-Titled-Tuesday-Blitz-October-24-2023"]
[Site "Chess.com"]
[Date "2023.10.24"]
[Round "6"]
[White "ChuckPhil"]
[Black "Alexei_Gubajdullin"]
[Result "0-1"]
[WhiteElo "2544"]
[BlackElo "2718"]
[TimeControl "180+1"]
[EndTime "15:06:18 PDT"]
[Termination "Alexei_Gubajdullin won by checkmate"]

1. d4 {[%clk 0:03:00.9]} 1... Nf6 {[%clk 0:02:20.9]} 2. c4 {[%clk 0:03:00.1]}
2... g6 {[%clk 0:02:20.4]} 3. Nf3 {[%clk 0:02:59.4]} 3... Bg7 {[%clk 0:02:20.4]}
4. g3 {[%clk 0:02:58.2]} 4... O-O {[%clk 0:02:20.5]} 5. Bg2 {[%clk 0:02:58.8]}
5... d6 {[%clk 0:02:21]} 6. O-O {[%clk 0:02:59.3]} 6... Nbd7 {[%clk 0:02:21.5]}
7. Nc3 {[%clk 0:02:59.8]} 7... e5 {[%clk 0:02:21.9]} 8. e4 {[%clk 0:02:53.3]}
8... c6 {[%clk 0:02:22]} 9. h3 {[%clk 0:02:52.8]} 9... Re8 {[%clk 0:02:22.2]}
10. Re1 {[%clk 0:02:52.9]} 10... a5 {[%clk 0:02:22.3]} 11. Rb1 {[%clk
0:02:44.4]} 11... exd4 {[%clk 0:02:11.4]} 12. Nxd4 {[%clk 0:02:43.7]} 12... Nc5
{[%clk 0:02:10.1]} 13. Bf4 {[%clk 0:02:38]} 13... Qb6 {[%clk 0:01:56.8]} 14. Nc2
{[%clk 0:02:09.6]} 14... Nfd7 {[%clk 0:01:44.3]} 15. Bxd6 {[%clk 0:01:45.2]}
15... Ne5 {[%clk 0:01:42.9]} 16. Bf1 {[%clk 0:01:45.6]} 16... Nxc4 {[%clk
0:01:39.4]} 17. Bxc4 {[%clk 0:01:42]} 17... Bxh3 {[%clk 0:01:28.3]} 18. Qf3
{[%clk 0:01:32.6]} 18... Be6 {[%clk 0:01:26.8]} 19. Ne3 {[%clk 0:01:22.8]} 19...
a4 {[%clk 0:01:19.8]} 20. Bxe6 {[%clk 0:01:19.2]} 20... Rxe6 {[%clk 0:01:19.3]}
21. Nc4 {[%clk 0:01:19.5]} 21... Qa7 {[%clk 0:01:17.7]} 22. Qe3 {[%clk
0:01:16.3]} 22... b6 {[%clk 0:01:13.5]} 23. Rbd1 {[%clk 0:01:07.8]} 23... Rae8
{[%clk 0:00:52.3]} 24. Bxc5 {[%clk 0:00:51.6]} 24... bxc5 {[%clk 0:00:51.3]} 25.
Nd6 {[%clk 0:00:42.4]} 25... Rf8 {[%clk 0:00:48.6]} 26. Nc4 {[%clk 0:00:21.8]}
26... Bd4 {[%clk 0:00:46.6]} 27. Qf3 {[%clk 0:00:17.6]} 27... f5 {[%clk
0:00:39.6]} 28. e5 {[%clk 0:00:17.3]} 28... f4 {[%clk 0:00:39.6]} 29. g4 {[%clk
0:00:17.2]} 29... Qa6 {[%clk 0:00:38.9]} 30. Nd2 {[%clk 0:00:10.8]} 30... a3
{[%clk 0:00:37.2]} 31. b3 {[%clk 0:00:07.9]} 31... Qa5 {[%clk 0:00:32.4]} 32.
Nce4 {[%clk 0:00:07]} 32... Rxe5 {[%clk 0:00:32]} 33. Nc4 {[%clk 0:00:07.3]}
33... Qc7 {[%clk 0:00:28.4]} 34. Nxe5 {[%clk 0:00:06.6]} 34... Qxe5 {[%clk
0:00:27.3]} 35. g5 {[%clk 0:00:06.9]} 35... Qf5 {[%clk 0:00:27.1]} 36. Kf1
{[%clk 0:00:05.4]} 36... h5 {[%clk 0:00:20.7]} 37. Nd6 {[%clk 0:00:05.5]} 37...
Qxg5 {[%clk 0:00:17.9]} 38. Qxc6 {[%clk 0:00:05.9]} 38... f3 {[%clk 0:00:17.4]}
39. Ne4 {[%clk 0:00:04.9]} 39... Qg2# {[%clk 0:00:16.8]} 0-1

[Event "Late-Titled-Tuesday-Blitz-October-24-2023"]
[Site "Chess.com"]
[Date "2023.10.24"]
[Round "6"]
[White "Mykola-Bortnyk"]
[Black "Korchmar_Vasiliy"]
[Result "0-1"]
[WhiteElo "2942"]
[BlackElo "2792"]
[TimeControl "180+1"]
[EndTime "15:06:19 PDT"]
[Termination "Korchmar_Vasiliy won by resignation"]

1. e4 {[%clk 0:03:00.9]} 1... c5 {[%clk 0:03:00.6]} 2. c3 {[%clk 0:03:01.2]}
2... d5 {[%clk 0:03:01.3]} 3. exd5 {[%clk 0:03:01.6]} 3... Nf6 {[%clk 0:03:02]}
4. d4 {[%clk 0:02:57.3]} 4... Nxd5 {[%clk 0:03:00.6]} 5. dxc5 {[%clk 0:02:55.9]}
5... e6 {[%clk 0:03:00.3]} 6. b4 {[%clk 0:02:53]} 6... a5 {[%clk 0:02:58.6]} 7.
Nf3 {[%clk 0:02:20.9]} 7... axb4 {[%clk 0:02:52.4]} 8. c4 {[%clk 0:02:21.6]}
8... Qf6 {[%clk 0:02:43.8]} 9. cxd5 {[%clk 0:02:07]} 9... Qxa1 {[%clk
0:02:42.8]} 10. Bb5+ {[%clk 0:02:07.7]} 10... Bd7 {[%clk 0:02:39.5]} 11. Bxd7+
{[%clk 0:02:07.4]} 11... Nxd7 {[%clk 0:02:40]} 12. c6 {[%clk 0:02:08.2]} 12...
bxc6 {[%clk 0:02:26]} 13. dxc6 {[%clk 0:02:09.1]} 13... Nf6 {[%clk 0:02:25.4]}
14. Bg5 {[%clk 0:01:58.6]} 14... Rd8 {[%clk 0:02:01.6]} 15. Qc2 {[%clk 0:01:58]}
15... Bd6 {[%clk 0:01:46.5]} 16. c7 {[%clk 0:01:23.8]} 16... Bxc7 {[%clk
0:01:44.8]} 17. O-O {[%clk 0:01:21.5]} 17... Bd6 {[%clk 0:01:14.2]} 18. Qc6+
{[%clk 0:01:19]} 18... Kf8 {[%clk 0:01:12.1]} 19. Qc2 {[%clk 0:00:52.5]} 19...
h6 {[%clk 0:01:06]} 20. Be3 {[%clk 0:00:51.4]} 20... Be7 {[%clk 0:00:46.4]} 21.
Bb6 {[%clk 0:00:46.9]} 21... Ra8 {[%clk 0:00:41.1]} 22. Rc1 {[%clk 0:00:41.7]}
22... Qxa2 {[%clk 0:00:36.9]} 23. Qc7 {[%clk 0:00:21.3]} 23... Nd5 {[%clk
0:00:28.7]} 24. Qb7 {[%clk 0:00:13.2]} 24... Nxb6 {[%clk 0:00:27.9]} 25. Qxb6
{[%clk 0:00:14.1]} 25... Kg8 {[%clk 0:00:23]} 26. Ne5 {[%clk 0:00:09.2]} 26...
Qa7 {[%clk 0:00:18.7]} 27. Qc6 {[%clk 0:00:08.6]} 27... Bf6 {[%clk 0:00:15.7]}
28. Nd7 {[%clk 0:00:08.1]} 28... Bd4 {[%clk 0:00:16.1]} 29. Nd2 {[%clk
0:00:06.9]} 29... Bxf2+ {[%clk 0:00:15.6]} 30. Kh1 {[%clk 0:00:07.3]} 30... Be3
{[%clk 0:00:16.2]} 31. Re1 {[%clk 0:00:01.9]} 31... Bxd2 {[%clk 0:00:16.2]} 32.
Rf1 {[%clk 0:00:02.8]} 32... Bc3 {[%clk 0:00:09.2]} 33. h4 {[%clk 0:00:03.2]}
33... Rd8 {[%clk 0:00:08.8]} 34. Nc5 {[%clk 0:00:03.4]} 34... Qe7 {[%clk
0:00:07.1]} 35. Nb7 {[%clk 0:00:03.3]} 35... Qxh4+ {[%clk 0:00:06.8]} 36. Kg1
{[%clk 0:00:03.3]} 36... Bd4+ {[%clk 0:00:07.3]} 0-1

[Event "Late-Titled-Tuesday-Blitz-October-24-2023"]
[Site "Chess.com"]
[Date "2023.10.24"]
[Round "6"]
[White "jaskol95"]
[Black "tdf98pantani"]
[Result "1-0"]
[WhiteElo "2555"]
[BlackElo "2650"]
[TimeControl "180+1"]
[EndTime "15:06:19 PDT"]
[Termination "jaskol95 won by checkmate"]

1. e4 {[%clk 0:03:00.9]} 1... c5 {[%clk 0:02:56.4]} 2. Nf3 {[%clk 0:03:01.3]}
2... d6 {[%clk 0:02:56.6]} 3. Bb5+ {[%clk 0:03:00.8]} 3... Bd7 {[%clk
0:02:55.6]} 4. Bxd7+ {[%clk 0:02:58.7]} 4... Nxd7 {[%clk 0:02:55.9]} 5. d4
{[%clk 0:02:58.3]} 5... cxd4 {[%clk 0:02:55.6]} 6. Qxd4 {[%clk 0:02:59.1]} 6...
Ngf6 {[%clk 0:02:49]} 7. O-O {[%clk 0:02:57.5]} 7... Qb6 {[%clk 0:02:43.4]} 8.
Qxb6 {[%clk 0:02:56.6]} 8... Nxb6 {[%clk 0:02:41.3]} 9. Nc3 {[%clk 0:02:45]}
9... Rc8 {[%clk 0:02:36.7]} 10. e5 {[%clk 0:02:37.5]} 10... dxe5 {[%clk
0:02:35.8]} 11. Nxe5 {[%clk 0:02:38.4]} 11... e6 {[%clk 0:02:32.3]} 12. Be3
{[%clk 0:02:32.2]} 12... Bd6 {[%clk 0:02:23.8]} 13. Bxb6 {[%clk 0:02:26.3]}
13... axb6 {[%clk 0:02:09.8]} 14. Nd3 {[%clk 0:02:23.7]} 14... Ke7 {[%clk
0:02:08.2]} 15. Rac1 {[%clk 0:02:15.4]} 15... Rc6 {[%clk 0:01:35]} 16. Rfd1
{[%clk 0:02:09.1]} 16... Rhc8 {[%clk 0:01:33.8]} 17. g3 {[%clk 0:02:07.1]} 17...
h5 {[%clk 0:01:08.1]} 18. Nb5 {[%clk 0:01:52.3]} 18... Bb8 {[%clk 0:01:00.9]}
19. Nd4 {[%clk 0:01:30.3]} 19... Rc4 {[%clk 0:01:00.6]} 20. c3 {[%clk
0:01:30.6]} 20... Nd5 {[%clk 0:00:58.6]} 21. Ne1 {[%clk 0:01:15]} 21... Be5
{[%clk 0:00:57.1]} 22. Nf5+ {[%clk 0:01:00]} 22... Kf6 {[%clk 0:00:54.6]} 23.
Ne3 {[%clk 0:00:58.4]} 23... Nxe3 {[%clk 0:00:54.4]} 24. fxe3 {[%clk 0:00:59.3]}
24... h4 {[%clk 0:00:48.4]} 25. Nd3 {[%clk 0:00:43.8]} 25... hxg3 {[%clk
0:00:47.4]} 26. Rf1+ {[%clk 0:00:43.9]} 26... Kg5 {[%clk 0:00:35.2]} 27. Nxe5
{[%clk 0:00:43.1]} 27... gxh2+ {[%clk 0:00:34.3]} 28. Kxh2 {[%clk 0:00:32.3]}
28... Rh4+ {[%clk 0:00:33.9]} 29. Kg2 {[%clk 0:00:32.9]} 29... Re4 {[%clk
0:00:30.5]} 30. Nxf7+ {[%clk 0:00:31.6]} 30... Kg6 {[%clk 0:00:28.5]} 31. Rf3
{[%clk 0:00:29.3]} 31... Rg4+ {[%clk 0:00:26.1]} 32. Kf2 {[%clk 0:00:27.4]}
32... Rc5 {[%clk 0:00:26.6]} 33. Rg1 {[%clk 0:00:23.3]} 33... Rxg1 {[%clk
0:00:25.6]} 34. Kxg1 {[%clk 0:00:24.2]} 34... Rd5 {[%clk 0:00:21.4]} 35. Rf2
{[%clk 0:00:20.7]} 35... Kh5 {[%clk 0:00:17]} 36. e4 {[%clk 0:00:19.1]} 36...
Rd1+ {[%clk 0:00:14.8]} 37. Kg2 {[%clk 0:00:19.2]} 37... g5 {[%clk 0:00:15]} 38.
Ne5 {[%clk 0:00:19.2]} 38... g4 {[%clk 0:00:14.5]} 39. Kg3 {[%clk 0:00:18.2]}
39... Rg1+ {[%clk 0:00:14]} 40. Kf4 {[%clk 0:00:18.8]} 40... g3 {[%clk
0:00:12.5]} 41. Rf3 {[%clk 0:00:10.9]} 41... g2 {[%clk 0:00:12.4]} 42. Rh3#
{[%clk 0:00:10.6]} 1-0

[Event "Late-Titled-Tuesday-Blitz-October-24-2023"]
[Site "Chess.com"]
[Date "2023.10.24"]
[Round "6"]
[White "pedromartinez91"]
[Black "tteshan"]
[Result "1-0"]
[WhiteElo "2629"]
[BlackElo "2510"]
[TimeControl "180+1"]
[EndTime "15:06:21 PDT"]
[Termination "pedromartinez91 won on time"]

1. d4 {[%clk 0:02:56.9]} 1... d5 {[%clk 0:02:59.4]} 2. c4 {[%clk 0:02:56.8]}
2... dxc4 {[%clk 0:03:00.3]} 3. e3 {[%clk 0:02:56.7]} 3... e6 {[%clk 0:02:59.8]}
4. Bxc4 {[%clk 0:02:56.5]} 4... Nf6 {[%clk 0:03:00.4]} 5. Nf3 {[%clk 0:02:56.8]}
5... c5 {[%clk 0:03:01]} 6. O-O {[%clk 0:02:56.4]} 6... a6 {[%clk 0:03:01.4]} 7.
dxc5 {[%clk 0:02:56.5]} 7... Qxd1 {[%clk 0:03:00.7]} 8. Rxd1 {[%clk 0:02:57.4]}
8... Bxc5 {[%clk 0:03:01.1]} 9. Nc3 {[%clk 0:02:49.3]} 9... O-O {[%clk 0:03:01]}
10. Bd2 {[%clk 0:02:49.2]} 10... b5 {[%clk 0:02:59.5]} 11. Be2 {[%clk 0:02:49]}
11... Bb7 {[%clk 0:02:59.2]} 12. Rac1 {[%clk 0:02:47.6]} 12... Be7 {[%clk
0:02:58.1]} 13. Ne5 {[%clk 0:02:31.9]} 13... Nbd7 {[%clk 0:02:15.8]} 14. Nxd7
{[%clk 0:02:27.4]} 14... Nxd7 {[%clk 0:02:16.7]} 15. Nxb5 {[%clk 0:02:22.8]}
15... axb5 {[%clk 0:02:14.5]} 16. Rc7 {[%clk 0:02:23.3]} 16... Bc8 {[%clk
0:01:52.6]} 17. Bxb5 {[%clk 0:02:18.5]} 17... Bd6 {[%clk 0:01:27.4]} 18. Rc6
{[%clk 0:02:05.5]} 18... Be7 {[%clk 0:01:05.1]} 19. a4 {[%clk 0:01:59.9]} 19...
Rd8 {[%clk 0:00:36.7]} 20. Bc3 {[%clk 0:01:50]} 20... Nf8 {[%clk 0:00:21.6]} 21.
Rxd8 {[%clk 0:01:34.8]} 21... Bxd8 {[%clk 0:00:22.5]} 22. Rd6 {[%clk 0:01:27]}
22... Bb7 {[%clk 0:00:22.5]} 23. f3 {[%clk 0:01:19.5]} 23... f6 {[%clk
0:00:18.5]} 24. Kf2 {[%clk 0:01:17.5]} 24... Kf7 {[%clk 0:00:18.6]} 25. b4
{[%clk 0:01:15.5]} 25... Be7 {[%clk 0:00:17.2]} 26. Rd3 {[%clk 0:01:13.8]} 26...
Ba6 {[%clk 0:00:12.3]} 27. Bxa6 {[%clk 0:01:11.9]} 27... Rxa6 {[%clk 0:00:13.2]}
28. a5 {[%clk 0:01:12.2]} 28... Ke8 {[%clk 0:00:13.2]} 29. b5 {[%clk 0:01:11.9]}
29... Ra8 {[%clk 0:00:13.4]} 30. b6 {[%clk 0:01:07.4]} 30... Nd7 {[%clk
0:00:12.2]} 31. b7 {[%clk 0:01:07.4]} 31... Rb8 {[%clk 0:00:12.6]} 32. a6 {[%clk
0:01:06.7]} 32... Bc5 {[%clk 0:00:13]} 33. Bd4 {[%clk 0:01:01.4]} 33... Bxd4
{[%clk 0:00:05.2]} 34. Rxd4 {[%clk 0:01:00.8]} 34... Nb6 {[%clk 0:00:05.7]} 35.
Rd6 {[%clk 0:00:56.1]} 35... Nc8 {[%clk 0:00:03.7]} 36. bxc8=Q+ {[%clk
0:00:41.3]} 36... Rxc8 {[%clk 0:00:04.6]} 37. a7 {[%clk 0:00:41.7]} 37... Ra8
{[%clk 0:00:04.4]} 38. Rxe6+ {[%clk 0:00:42]} 38... Kf7 {[%clk 0:00:02.8]} 39.
Ra6 {[%clk 0:00:42.9]} 39... Ke7 {[%clk 0:00:02.6]} 40. e4 {[%clk 0:00:43.3]}
40... Kf7 {[%clk 0:00:02.9]} 41. Ke3 {[%clk 0:00:43.8]} 41... Ke7 {[%clk
0:00:03.4]} 42. f4 {[%clk 0:00:44.3]} 42... Kf7 {[%clk 0:00:03.8]} 43. g4 {[%clk
0:00:44.7]} 43... Ke7 {[%clk 0:00:04.1]} 44. h4 {[%clk 0:00:45.2]} 44... Kf7
{[%clk 0:00:04.6]} 45. h5 {[%clk 0:00:45.8]} 45... Ke7 {[%clk 0:00:05.1]} 46. e5
{[%clk 0:00:46]} 46... fxe5 {[%clk 0:00:04.2]} 47. fxe5 {[%clk 0:00:46.9]} 47...
Kf7 {[%clk 0:00:04.6]} 48. Ke4 {[%clk 0:00:47.2]} 48... Ke7 {[%clk 0:00:05.1]}
49. g5 {[%clk 0:00:47.7]} 49... Kf7 {[%clk 0:00:04.8]} 50. Kf5 {[%clk
0:00:47.7]} 50... g6+ {[%clk 0:00:03.3]} 51. hxg6+ {[%clk 0:00:48.6]} 51...
hxg6+ {[%clk 0:00:03.8]} 52. Ke4 {[%clk 0:00:49.3]} 52... Kg7 {[%clk 0:00:02.6]}
53. Kd5 {[%clk 0:00:48.9]} 53... Kf7 {[%clk 0:00:03.2]} 54. Kc6 {[%clk
0:00:49.2]} 1-0